bitfinex/quotes_BTCUSD_20250726
["timestamp","ask_amount","ask_price","bid_price","bid_amount"]
[1753498733641,6.64754311,117640.0,117630.0,1e-08]
[1753498738982,6.6316007,117640.0,117630.0,1e-08]
[1753498739179,6.64754223,117640.0,117630.0,1e-08]
[1753498741960,6.63214223,117640.0,117630.0,1e-08]
[1753498743203,6.64864223,117640.0,117630.0,1e-08]
[1753498743958,0.54447576,117630.0,117620.0,1e-08]
[1753498744165,0.53598993,117620.0,117610.0,0.04163]
[1753498744368,0.53600511,117610.0,117600.0,0.0242817]
[1753498744584,1.03765513,117610.0,117600.0,0.0242817]
[1753498745237,1.04614381,117610.0,117600.0,0.0242817]
[1753498746035,0.7781566,117610.0,117600.0,0.0242817]
[1753498746220,1.14656662,117610.0,117600.0,0.0242817]
[1753498746846,1.43049934,117610.0,117600.0,0.0242817]
[1753498747049,1.43647834,117610.0,117600.0,0.0242817]
[1753498747257,1.46242834,117610.0,117600.0,0.0165217]
[1753498747458,1.46242834,117610.0,117600.0,0.0325217]
[1753498748258,1.46542834,117610.0,117600.0,0.0325217]
[1753498748458,1.46758834,117610.0,117600.0,0.0325217]
[1753498749291,1.46758834,117610.0,117600.0,0.0165217]
[1753498749491,1.46858834,117610.0,117600.0,0.0165217]
[1753498749991,1.46857738,117610.0,117600.0,0.0165217]
[1753498750189,1.46857738,117610.0,117600.0,0.0331217]
[1753498752418,1.4600887,117610.0,117600.0,0.0331217]
[1753498753744,1.4600887,117610.0,117600.0,0.0165217]
[1753498760748,1.4600887,117610.0,117600.0,0.0012217]
[1753498764315,1.46856172,117610.0,117600.0,0.0012217]
[1753498764515,1.46856172,117610.0,117600.0,0.0177217]
[1753498767290,1.46855303,117610.0,117600.0,0.0177217]
[1753498769194,1.46257898,117610.0,117600.0,0.0177217]
[1753498769386,1.4685541,117610.0,117600.0,0.0177217]
[1753498769807,1.4683941,117610.0,117600.0,0.0177217]
[1753498771813,1.4684021,117610.0,117600.0,0.0177217]
[1753498776281,1.46840832,117610.0,117600.0,0.0177217]
[1753498777645,0.90054288,117610.0,117600.0,0.0177217]
[1753498777909,1.46840832,117610.0,117600.0,0.0177217]
[1753498779488,1.29945372,117610.0,117600.0,0.0177217]
[1753498780597,1.32499772,117610.0,117600.0,0.0177217]
[1753498782573,1.32499772,117610.0,117600.0,0.0012217]
[1753498785119,1.32501371,117610.0,117600.0,0.0012217]
[1753498787902,1.32501351,117610.0,117600.0,0.0012217]
[1753498791413,1.40949081,117610.0,117600.0,0.0012217]
[1753498794550,1.40949093,117610.0,117600.0,0.0012217]
[1753498799517,1.42489093,117610.0,117600.0,0.0012217]
[1753498800197,1.29181093,117610.0,117600.0,0.0012217]
[1753498800399,0.52707445,117600.0,117590.0,0.01894312]
[1753498800608,0.70985051,117600.0,117590.0,0.01899166]
[1753498800816,1.27771595,117600.0,117590.0,0.01899166]
[1753498801012,1.29727721,117600.0,117590.0,0.01899166]
[1753498801448,1.2972783,117600.0,117590.0,0.01899166]
[1753498801668,0.73639572,117600.0,117590.0,0.01899166]
[1753498801876,1.30426116,117600.0,117590.0,0.03559166]
[1753498805801,1.17146116,117600.0,117590.0,0.03559166]
[1753498806009,1.30422116,117600.0,117590.0,0.03559166]
[1753498807279,1.32166703,117600.0,117590.0,0.03559166]
[1753498810254,1.32166602,117600.0,117590.0,0.03559166]
[1753498810721,1.304217,117600.0,117590.0,0.03559166]
[1753498811185,1.32166602,117600.0,117590.0,0.03559166]
[1753498816057,1.3216654,117600.0,117590.0,0.03559166]
[1753498816608,1.1889054,117600.0,117590.0,0.03559166]
[1753498816862,0.57106747,117600.0,117590.0,0.05832166]
[1753498817072,0.70370747,117600.0,117590.0,0.05832166]
[1753498818169,0.98764019,117600.0,117590.0,0.05832166]
[1753498818419,0.70370747,117600.0,117590.0,0.05832166]
[1753498819027,0.67816347,117600.0,117590.0,0.05832166]
[1753498824275,0.67799339,117600.0,117590.0,0.05832166]
[1753498824606,0.67799339,117600.0,117590.0,0.34225438]
[1753498825088,0.67799339,117600.0,117590.0,0.05832166]
[1753498829318,0.68106339,117600.0,117590.0,0.05832166]
[1753498829611,0.70456339,117600.0,117590.0,0.03559166]
[1753498830984,0.70670339,117600.0,117590.0,0.03559166]
[1753498832648,0.99063611,117600.0,117590.0,0.03559166]
[1753498838360,0.70670339,117600.0,117590.0,0.03559166]
[1753498844484,0.70670339,117600.0,117590.0,0.04413892]
[1753498845114,0.70670339,117600.0,117590.0,0.03559166]
[1753498847500,0.70670339,117600.0,117590.0,0.04409578]
[1753498848397,0.70670339,117600.0,117590.0,0.22268232]
[1753498848951,0.70670339,117600.0,117590.0,0.23100709]
[1753498849159,0.69837029,117600.0,117590.0,0.23100709]
[1753498849356,0.69837029,117600.0,117590.0,0.04409578]
[1753498849557,0.68986704,117600.0,117590.0,0.04409578]
[1753498850410,0.68986704,117600.0,117590.0,0.03559166]
[1753498853929,0.36757,117600.0,117590.0,0.7990513]
[1753498854134,0.13332,117600.0,117590.0,0.54668219]
[1753498854755,0.14182282,117600.0,117590.0,0.54668219]
[1753498854962,0.14182275,117600.0,117590.0,0.54668219]
[1753498855185,0.001,117600.0,117590.0,0.54668219]
[1753498855638,0.54180675,117610.0,117600.0,0.22697756]
[1753498855880,0.54394675,117610.0,117600.0,0.51091028]
[1753498856113,0.53544408,117610.0,117600.0,0.51941317]
[1753498856521,0.54394675,117610.0,117600.0,0.51941317]
[1753498856747,0.71400031,117610.0,117600.0,0.50240732]
[1753498857300,0.71400031,117610.0,117600.0,0.51091035]
[1753498858144,0.71400031,117610.0,117600.0,0.52041331]
[1753498858372,0.52649773,117610.0,117600.0,0.52041331]
[1753498858787,0.69655129,117610.0,117600.0,0.52041331]
[1753498860219,0.69655129,117610.0,117600.0,0.51191035]
[1753498861619,0.21104367,117630.0,117620.0,0.0308]
[1753498861820,0.21104367,117630.0,117620.0,0.5017755]
[1753498861821,0.69706483,117630.0,117620.0,0.5017755]
[1753498862082,0.70556577,117630.0,117620.0,0.50177565]
[1753498862315,0.68811675,117630.0,117620.0,0.51027731]
[1753498862501,0.69661798,117630.0,117620.0,0.5187789]
[1753498863157,0.69961798,117630.0,117620.0,0.51027731]
[1753498863409,0.68261588,117630.0,117620.0,0.50177565]
[1753498863662,0.67411465,117630.0,117620.0,0.49327377]
[1753498863905,0.67511465,117630.0,117620.0,0.49327377]
[1753498864822,0.67511465,117630.0,117620.0,0.31473272]
[1753498865740,0.67511465,117630.0,117620.0,0.29903272]
[1753498866488,0.17854098,117620.0,117610.0,0.35004673]
[1753498866714,0.31273098,117620.0,117610.0,0.63397945]
[1753498866998,0.33955098,117620.0,117610.0,0.50177945]
[1753498867436,0.33955098,117620.0,117610.0,0.51028183]
[1753498867653,0.33955098,117620.0,117610.0,0.51878414]
[1753498868881,0.34055098,117620.0,117610.0,0.51878414]
[1753498869265,0.35755466,117620.0,117610.0,0.51878414]
[1753498869470,0.36605632,117620.0,117610.0,0.52728638]
[1753498869680,0.19601722,117620.0,117610.0,0.52728588]
[1753498871578,0.36605632,117620.0,117610.0,0.51878371]
[1753498871779,0.36605632,117620.0,117610.0,0.51028147]
[1753498872426,0.36605632,117620.0,117610.0,0.51878371]
[1753498872880,0.36605632,117620.0,117610.0,0.51028147]
[1753498873119,0.36605632,117620.0,117610.0,0.22634875]
[1753498873331,0.35755466,117620.0,117610.0,0.51028147]
[1753498874023,0.33195466,117620.0,117610.0,0.51028147]
[1753498874281,0.32870466,117620.0,117610.0,0.54184371]
[1753498874859,0.35552466,117620.0,117610.0,0.54184371]
[1753498875191,0.35552466,117620.0,117610.0,0.51878371]
[1753498875827,0.17698361,117620.0,117610.0,0.52728588]
[1753498876477,0.15866506,117620.0,117610.0,0.55034588]
[1753498876891,0.15016325,117620.0,117610.0,0.55034588]
[1753498877102,0.16716694,117620.0,117610.0,0.55034588]
[1753498878498,0.03500694,117620.0,117610.0,0.55034588]
[1753498878932,0.03500621,117620.0,117610.0,0.55034588]
[1753498880006,0.04350802,117620.0,117610.0,0.55034588]
[1753498880537,0.04675802,117620.0,117610.0,0.55034588]
[1753498880741,0.07032802,117620.0,117610.0,0.55034588]
[1753498880946,0.04675802,117620.0,117610.0,0.68238588]
[1753498881160,0.04350802,117620.0,117610.0,0.68238588]
[1753498881439,0.04350802,117620.0,117610.0,0.68234588]
[1753498881875,0.04350802,117620.0,117610.0,0.67384371]
[1753498882101,0.0467586,117620.0,117610.0,0.67384371]
[1753498882302,0.07032903,117620.0,117610.0,0.65078371]
[1753498883013,0.24899647,117620.0,117610.0,0.58597432]
[1753498883247,0.24899647,117620.0,117610.0,0.61148169]
[1753498883482,0.23389647,117620.0,117610.0,0.487984]
[1753498883929,0.23171792,117620.0,117610.0,0.504284]
[1753498884627,0.22439474,117620.0,117610.0,0.504284]
[1753498884833,0.19554474,117620.0,117610.0,0.504284]
[1753498885002,0.19554474,117620.0,117610.0,0.519284]
[1753498885387,0.22236474,117620.0,117610.0,0.519284]
[1753498886072,0.22439474,117620.0,117610.0,0.23535128]
[1753498886272,0.21589293,117620.0,117610.0,0.51078169]
[1753498886538,0.21589293,117620.0,117610.0,0.22684897]
[1753498887179,0.21589293,117620.0,117610.0,0.51078169]
[1753498887399,0.21589293,117620.0,117610.0,0.22684897]
[1753498887619,0.21589293,117620.0,117610.0,0.51078169]
[1753498888165,0.21589293,117620.0,117610.0,0.22684897]
[1753498888381,0.21589293,117620.0,117610.0,0.51078169]
[1753498889248,0.21589293,117620.0,117610.0,0.519284]
[1753498889445,0.65056588,117630.0,117610.0,0.55084624]
[1753498889658,0.67727588,117630.0,117620.0,0.0325]
[1753498889858,0.67928588,117630.0,117620.0,0.0325]
[1753498890140,0.67928588,117630.0,117620.0,0.30003272]
[1753498890717,0.67928588,117630.0,117620.0,0.31643272]
[1753498890887,0.68128588,117630.0,117620.0,0.31643272]
[1753498891291,0.68128588,117630.0,117620.0,0.30003272]
[1753498891522,0.68028588,117630.0,117620.0,0.30003272]
[1753498891909,0.68128588,117630.0,117620.0,0.30003272]
[1753498894229,0.54924588,117630.0,117620.0,0.30003272]
[1753498894451,0.68116588,117630.0,117620.0,0.31503272]
[1753498894900,0.68116588,117630.0,117620.0,0.30003272]
[1753498895523,0.68116588,117630.0,117610.0,0.24990832]
[1753498895745,0.68116588,117630.0,117620.0,0.28393272]
[1753498896567,0.00850188,117620.0,117610.0,0.25841042]
[1753498896950,0.05221556,117620.0,117610.0,0.53384104]
[1753498897824,0.06071722,117620.0,117610.0,0.50227887]
[1753498898024,0.06071722,117620.0,117610.0,0.52533887]
[1753498898484,0.03400671,117620.0,117610.0,0.53384104]
[1753498898706,0.03400671,117620.0,117610.0,0.24990832]
[1753498898920,0.03400671,117620.0,117610.0,0.53384104]
[1753498899212,0.03400671,117620.0,117610.0,0.24990832]
[1753498899434,0.03400671,117620.0,117610.0,0.53384104]
[1753498900937,0.03400664,117620.0,117610.0,0.53384104]
[1753498901138,0.00850144,117620.0,117610.0,0.53384104]
[1753498901342,0.02550469,117620.0,117610.0,0.53384104]
[1753498901549,0.02550462,117620.0,117610.0,0.53384104]
[1753498901796,0.01700296,117620.0,117610.0,0.53384104]
[1753498901974,0.02550462,117620.0,117610.0,0.53384104]
[1753498902203,0.01700296,117620.0,117610.0,0.53384104]
[1753498902423,0.02550455,117620.0,117610.0,0.53384104]
[1753498902595,0.03400621,117620.0,117610.0,0.53484104]
[1753498903218,0.04250802,117620.0,117610.0,0.25090832]
[1753498903458,0.04250802,117620.0,117610.0,0.53484104]
[1753498903633,0.03400621,117620.0,117610.0,0.53484104]
[1753498903845,0.04571794,117620.0,117610.0,0.25090832]
[1753498903996,0.06921794,117620.0,117610.0,0.53584104]
[1753498904213,0.02550455,117620.0,117610.0,0.53584104]
[1753498904869,0.01700296,117620.0,117610.0,0.53584104]
[1753498905519,0.02550462,117620.0,117610.0,0.53584104]
[1753498905718,0.01700296,117620.0,117610.0,0.53584104]
[1753498905926,0.02550462,117620.0,117610.0,0.53584104]
[1753498906142,0.01700296,117620.0,117610.0,0.53584104]
[1753498906565,0.02021296,117620.0,117610.0,0.53584104]
[1753498906878,0.01700296,117620.0,117610.0,0.53584104]
[1753498907090,0.01700296,117620.0,117610.0,0.51278104]
[1753498907300,0.04371296,117620.0,117610.0,0.51278104]
[1753498907668,0.02871462,117620.0,117610.0,0.53584104]
[1753498907860,0.02021296,117620.0,117610.0,0.53584104]
[1753498908019,0.02871462,117620.0,117610.0,0.53584104]
[1753498908449,0.05221462,117620.0,117610.0,0.53584104]
[1753498909053,0.05221462,117620.0,117610.0,0.51278104]
[1753498910156,0.01700296,117620.0,117610.0,0.53584104]
[1753498911249,0.16705101,117630.0,117620.0,0.19554408]
[1753498911449,0.04572144,117630.0,117620.0,0.6274368]
[1753498911658,0.04371144,117630.0,117620.0,0.6436368]
[1753498911945,0.04371137,117630.0,117620.0,0.6436368]
[1753498912415,0.03521065,117630.0,117620.0,0.6436368]
[1753498912849,0.00850058,117630.0,117620.0,0.6666968]
[1753498913393,0.54141995,117640.0,117630.0,0.19552747]
[1753498913618,0.54342995,117640.0,117630.0,0.47946019]
[1753498914024,0.55193046,117640.0,117630.0,0.47946019]
[1753498914234,0.71344052,117640.0,117630.0,0.47095961]
[1753498914438,0.72994052,117640.0,117630.0,0.47095961]
[1753498914634,0.73098902,117640.0,117630.0,0.47095961]
[1753498914917,0.54447882,117640.0,117630.0,0.19552776]
[1753498915118,0.51852929,117640.0,117630.0,0.5041612]
[1753498915528,0.51952929,117640.0,117630.0,0.5041612]
[1753498915906,0.5025285,117640.0,117630.0,0.5041612]
[1753498916107,0.3707685,117640.0,117630.0,0.5194612]
[1753498916281,0.51098835,117640.0,117630.0,0.5194612]
[1753498916490,0.3687585,117640.0,117630.0,0.5194612]
[1753498916699,0.3677585,117640.0,117630.0,0.5194612]
[1753498916911,0.3667585,117640.0,117630.0,0.5194612]
[1753498917531,4.85e-05,117640.0,117630.0,0.82645392]
[1753498918271,4.85e-05,117640.0,117630.0,0.82745392]
[1753498918932,4.85e-05,117640.0,117630.0,0.82845392]
[1753498919607,4.85e-05,117640.0,117630.0,0.96013392]
[1753498919982,0.0032385,117640.0,117630.0,0.93707392]
[1753498920193,0.0277285,117640.0,117630.0,0.93707392]
[1753498920394,0.0277285,117640.0,117630.0,0.94544403]
[1753498921347,0.0277285,117640.0,117630.0,0.96850403]
[1753498922601,0.0032385,117640.0,117630.0,0.96850403]
[1753498923544,4.85e-05,117640.0,117630.0,0.96850403]
[1753498924184,4.85e-05,117640.0,117630.0,0.96750403]
[1753498924598,4.85e-05,117640.0,117630.0,0.97050403]
[1753498924867,4.85e-05,117640.0,117630.0,0.96950403]
[1753498925624,4.85e-05,117640.0,117630.0,0.97250403]
[1753498943033,4.85e-05,117640.0,117630.0,0.40463859]
[1753498943238,4.85e-05,117640.0,117630.0,0.97250403]
[1753498945803,0.0032385,117640.0,117630.0,0.97250403]
[1753498946519,4.85e-05,117640.0,117630.0,0.97250403]
[1753498947416,4.85e-05,117640.0,117630.0,0.96413392]
[1753498949856,0.0280085,117640.0,117630.0,0.96413392]
[1753498951435,0.0280085,117640.0,117630.0,0.94107392]
[1753498951835,0.0280085,117640.0,117630.0,0.94950684]
[1753498952481,0.0280085,117640.0,117630.0,0.97517009]
[1753498953063,0.0030185,117640.0,117630.0,0.97517009]
[1753498953312,4.85e-05,117640.0,117630.0,0.99823009]
[1753498967144,4.85e-05,117640.0,117630.0,1.26563009]
[1753498968223,4.85e-05,117640.0,117630.0,1.26263009]
[1753498968458,4.85e-05,117640.0,117630.0,1.25963009]
[1753498969260,4.85e-05,117640.0,117630.0,1.26463009]
[1753498970402,4.85e-05,117640.0,117630.0,1.27063009]
[1753498975582,4.85e-05,117640.0,117630.0,1.32063009]
[1753498976000,4.85e-05,117640.0,117630.0,6.32063009]
[1753498976910,4.85e-05,117640.0,117630.0,6.27063009]
[1753498981571,4.85e-05,117640.0,117630.0,6.61063009]
[1753498985309,4.85e-05,117640.0,117630.0,6.66063009]
[1753498991235,0.00297,117650.0,117640.0,0.19551085]
[1753498991477,0.038655,117670.0,117660.0,0.19547761]
[1753498991708,0.04117999,117670.0,117660.0,0.89438305]
[1753498991909,0.06717999,117670.0,117660.0,0.89438305]
[1753498992635,0.05097999,117670.0,117660.0,0.89438305]
[1753498993368,0.05097999,117670.0,117660.0,0.89638305]
[1753498998386,0.05097999,117670.0,117660.0,0.32851761]
[1753498998604,0.05097999,117670.0,117660.0,0.89638305]
[1753498999352,0.06607999,117670.0,117660.0,0.89638305]
[1753499000399,0.05097999,117670.0,117660.0,0.89638305]
[1753499011095,0.05097999,117670.0,117660.0,0.32851761]
[1753499011311,0.05097999,117670.0,117660.0,0.89638305]
[1753499015344,0.05097999,117670.0,117660.0,0.9217108]
[1753499020031,0.03353999,117670.0,117660.0,0.9217108]
[1753499020265,0.00753999,117670.0,117660.0,0.9762708]
[1753499020867,0.00753999,117670.0,117660.0,0.9599708]
[1753499021070,0.00753999,117670.0,117660.0,0.96628511]
[1753499021493,0.00753999,117670.0,117660.0,0.98258511]
[1753499022605,0.00753999,117670.0,117660.0,0.98458511]
[1753499022833,0.00753999,117670.0,117660.0,0.98758511]
[1753499026015,0.05112999,117670.0,117660.0,0.64881239]
[1753499026212,0.06652999,117670.0,117660.0,0.64881239]
[1753499026447,0.06652999,117670.0,117660.0,0.69881239]
[1753499026856,0.06652999,117670.0,117660.0,0.66706478]
[1753499027055,0.06652999,117670.0,117660.0,0.93446478]
[1753499027254,0.06652999,117670.0,117660.0,0.80370478]
[1753499027454,0.06652999,117670.0,117660.0,0.93446478]
[1753499028252,0.06652999,117670.0,117660.0,0.80370478]
[1753499028459,0.06652999,117670.0,117660.0,0.93446478]
[1753499032404,0.05112999,117670.0,117660.0,0.93446478]
[1753499033323,0.06772999,117670.0,117660.0,0.93446478]
[1753499033732,0.06772999,117670.0,117660.0,0.80370478]
[1753499033956,0.03562999,117670.0,117660.0,0.93442478]
[1753499034358,0.00753999,117670.0,117660.0,0.98908478]
[1753499035634,0.00753999,117670.0,117660.0,1.01459978]
[1753499037338,0.00753999,117670.0,117660.0,6.01459978]
[1753499039088,0.00753999,117670.0,117660.0,5.74719978]
[1753499042018,0.03490999,117670.0,117660.0,5.65823978]
[1753499043198,0.01061999,117670.0,117660.0,5.68075978]
[1753499043817,0.03490999,117670.0,117660.0,5.68075978]
[1753499044503,0.03490999,117670.0,117660.0,5.65823978]
[1753499044918,0.03490999,117670.0,117660.0,5.92563978]
[1753499045570,0.03490999,117670.0,117660.0,0.92563978]
[1753499045792,0.03490999,117670.0,117660.0,5.92563978]
[1753499046380,0.03702999,117670.0,117660.0,5.90993978]
[1753499047179,0.03702999,117670.0,117660.0,5.95993978]
[1753499050694,0.03490999,117670.0,117660.0,5.95993978]
[1753499052896,0.03490999,117670.0,117660.0,6.27500207]
[1753499054415,0.03490999,117670.0,117660.0,6.22500207]
[1753499055175,0.03490999,117670.0,117660.0,5.65775467]
[1753499055425,0.03490999,117670.0,117660.0,6.22500207]
[1753499057298,0.03490999,117670.0,117660.0,6.27500207]
[1753499060561,0.03490999,117670.0,117660.0,1.27500207]
[1753499060779,0.06772999,117670.0,117660.0,6.14428207]
[1753499060998,0.06772999,117670.0,117660.0,0.96566337]
[1753499061416,0.06772999,117670.0,117660.0,0.83514337]
[1753499061660,0.06772999,117670.0,117660.0,0.96566337]
[1753499062773,0.06772999,117670.0,117660.0,0.64826337]
[1753499062983,0.06772999,117670.0,117660.0,0.36463967]
[1753499063202,0.06772999,117670.0,117660.0,0.64826337]
[1753499063834,0.07622775,117670.0,117660.0,0.64826337]
[1753499064046,0.07588781,117670.0,117660.0,0.64826337]
[1753499064312,0.06734756,117670.0,117660.0,0.64826337]
[1753499064935,0.06734756,117670.0,117660.0,0.61685103]
[1753499065575,0.07584539,117670.0,117660.0,0.61685103]
[1753499065751,0.06734756,117670.0,117660.0,0.61685103]
[1753499065998,0.06734756,117670.0,117660.0,0.36463967]
[1753499066671,0.06734756,117670.0,117660.0,0.61685103]
[1753499070354,0.07584539,117670.0,117660.0,0.61685103]
[1753499070629,0.07584539,117670.0,117660.0,0.18348029]
[1753499070630,0.26280826,117670.0,117660.0,0.18348029]
[1753499070831,0.10133975,117670.0,117660.0,0.33091769]
[1753499071465,0.2713066,117670.0,117660.0,0.33091769]
[1753499072368,0.26280877,117670.0,117660.0,0.32241906]
[1753499072589,0.26280877,117670.0,117660.0,0.33091776]
[1753499073014,0.09284192,117670.0,117660.0,0.33941631]
[1753499074086,0.09284192,117670.0,117660.0,0.33091776]
[1753499075611,0.84652223,117670.0,117660.0,0.005]
[1753499076453,0.84652223,117670.0,117660.0,0.003]
[1753499076655,0.05709841,117650.0,117640.0,0.21232599]
[1753499076872,0.05926841,117650.0,117640.0,0.21232599]
[1753499077101,0.07673877,117650.0,117640.0,0.46453735]
[1753499077324,0.07673877,117650.0,117640.0,0.45621831]
[1753499077529,0.08523841,117650.0,117640.0,0.20400695]
[1753499077747,0.08523841,117650.0,117640.0,0.1955071]
[1753499077924,0.07673877,117650.0,117640.0,0.1955071]
[1753499078065,0.07773877,117650.0,117640.0,0.1955071]
[1753499078311,0.08623834,117650.0,117640.0,0.1955071]
[1753499078841,0.04464,117650.0,117640.0,0.44771846]
[1753499079056,0.001,117650.0,117640.0,0.47077846]
[1753499079259,0.001,117650.0,117640.0,0.73948982]
[1753499079481,0.001,117650.0,117640.0,0.48727846]
[1753499080361,0.001,117650.0,117640.0,0.53727846]
[1753499080728,0.001,117650.0,117640.0,0.48727846]
[1753499084025,0.001,117650.0,117640.0,0.47077846]
[1753499086025,0.001,117650.0,117640.0,0.60113846]
[1753499086236,0.001,117650.0,117640.0,0.60942238]
[1753499090162,0.001,117650.0,117640.0,0.62512238]
[1753499092856,0.001,117650.0,117640.0,0.60942238]
[1753499093064,0.00413,117650.0,117640.0,0.60942238]
[1753499093297,0.02697,117650.0,117640.0,0.60942238]
[1753499094688,0.00413,117650.0,117640.0,0.60942238]
[1753499095595,0.02697,117650.0,117640.0,0.58636238]
[1753499096056,0.02697,117650.0,117640.0,0.63636238]
[1753499100707,0.02697,117650.0,117640.0,0.66792863]
[1753499102423,0.029,117650.0,117640.0,0.66792863]
[1753499102620,0.0443,117650.0,117640.0,0.66792863]
[1753499103268,0.0443,117650.0,117640.0,0.38415102]
[1753499103479,0.0443,117650.0,117640.0,0.61792863]
[1753499104107,0.0443,117650.0,117640.0,0.33415102]
[1753499104528,0.0443,117650.0,117640.0,0.61792863]
[1753499107126,0.0443,117650.0,117640.0,0.33415102]
[1753499107370,0.0443,117650.0,117640.0,0.61792863]
[1753499108745,0.0595,117650.0,117640.0,0.61792863]
[1753499111700,0.34327761,117650.0,117640.0,0.33415102]
[1753499111913,0.36877587,117650.0,117640.0,0.30036688]
[1753499112208,0.37727558,117650.0,117640.0,0.18700775]
[1753499112436,0.54727133,117650.0,117640.0,0.18700782]
[1753499112658,0.04099993,117640.0,117630.0,0.31732544]
[1753499112883,0.36110768,117640.0,117630.0,0.3343271]
[1753499113104,0.36960775,117640.0,117630.0,0.3343271]
[1753499113325,0.09433043,117640.0,117630.0,0.3343271]
[1753499113762,0.09433043,117640.0,117630.0,0.32576739]
[1753499113994,0.08583014,117640.0,117630.0,0.32576739]
[1753499114212,0.09433036,117640.0,117630.0,0.33076739]
[1753499115972,0.10283065,117640.0,117630.0,0.33076739]
[1753499117077,0.26434136,117640.0,117630.0,0.30526465]
[1753499117274,0.49974278,117640.0,117630.0,0.14374123]
[1753499117518,0.49974278,117640.0,117630.0,0.32226704]
[1753499117923,0.247341,117640.0,117630.0,0.33076812]
[1753499118372,0.247341,117640.0,117630.0,0.33926906]
[1753499119236,0.247341,117640.0,117630.0,0.20902906]
[1753499120739,0.377541,117640.0,117630.0,0.20902906]
[1753499120952,0.377541,117640.0,117630.0,0.20052812]
[1753499121409,0.247341,117640.0,117630.0,0.20052812]
[1753499121621,0.23884071,117640.0,117630.0,0.20052812]
[1753499121838,0.2303402,117640.0,117630.0,0.19202704]
[1753499122052,0.48274198,117640.0,117630.0,0.005]
[1753499122264,0.82274198,117640.0,117630.0,0.005]
[1753499122715,0.95290198,117640.0,117630.0,0.18352588]
[1753499122923,0.71750085,117640.0,117630.0,0.20052798]
[1753499123135,0.71750085,117640.0,117630.0,0.19552798]
[1753499123353,0.53899,117640.0,117630.0,0.20402885]
[1753499123595,0.53999,117640.0,117630.0,0.21252964]
[1753499124057,0.54099,117640.0,117630.0,0.21252964]
[1753499124391,0.54099,117640.0,117630.0,0.20402885]
[1753499124757,0.54949014,117640.0,117630.0,0.20402885]
[1753499125110,0.54949014,117640.0,117630.0,0.19552798]
[1753499125543,0.54949014,117640.0,117630.0,0.20402885]
[1753499126825,0.54949014,117640.0,117630.0,0.19552798]
[1753499127038,0.54949014,117640.0,117630.0,0.20402885]
[1753499127250,0.54949014,117640.0,117630.0,0.19552798]
[1753499127471,0.54949014,117640.0,117630.0,0.20402885]
[1753499128214,0.54949014,117640.0,117630.0,0.19552798]
[1753499128970,0.56649065,117640.0,117630.0,0.19552805]
[1753499130242,0.56649065,117640.0,117630.0,0.18702704]
[1753499130472,0.57499108,117640.0,117630.0,0.19552812]
[1753499130684,0.57499108,117640.0,117630.0,0.18702704]
[1753499131114,0.57499108,117640.0,117630.0,0.19552812]
[1753499131325,0.57499108,117640.0,117630.0,0.18702704]
[1753499131543,0.57499108,117640.0,117630.0,0.19552812]
[1753499131962,0.56649065,117640.0,117630.0,0.19552812]
[1753499132249,0.56649065,117640.0,117630.0,0.20402913]
[1753499133340,0.57499108,117640.0,117630.0,0.19552812]
[1753499133546,0.81889243,117640.0,117630.0,0.20402913]
[1753499133715,0.81889243,117640.0,117630.0,0.19552812]
[1753499133929,0.82739286,117640.0,117630.0,0.18702704]
[1753499134142,0.57499108,117640.0,117630.0,0.18702704]
[1753499134832,0.85896796,117640.0,117630.0,0.18702704]
[1753499134973,0.85896796,117640.0,117630.0,0.19552812]
[1753499135171,1.02047809,117640.0,117630.0,0.17002465]
[1753499135375,0.8589684,117640.0,117630.0,0.17002465]
[1753499135587,0.8589684,117640.0,117630.0,0.17852588]
[1753499136151,0.57499152,117640.0,117630.0,0.18702704]
[1753499136354,0.8589684,117640.0,117630.0,0.17852588]
[1753499136576,0.8589684,117640.0,117630.0,0.17002465]
[1753499136920,0.8589684,117640.0,117630.0,0.17852588]
[1753499137582,0.8589684,117640.0,117630.0,0.18702704]
[1753499137800,0.8589684,117640.0,117630.0,0.17852588]
[1753499138005,0.8589684,117640.0,117630.0,0.17002465]
[1753499138431,0.8589684,117640.0,117630.0,0.17852588]
[1753499138611,0.85046789,117640.0,117630.0,0.19552812]
[1753499138848,0.84196753,117640.0,117630.0,0.19552812]
[1753499139056,0.83346695,117640.0,117630.0,0.20402906]
[1753499139321,0.84196724,117640.0,117630.0,0.21253007]
[1753499139542,0.83346695,117640.0,117630.0,0.21253007]
[1753499139760,0.84196717,117640.0,117630.0,0.21253007]
[1753499139982,0.42783029,117640.0,117630.0,0.20402913]
[1753499140203,0.84192703,117640.0,117630.0,0.21253007]
[1753499140675,0.84192703,117640.0,117630.0,0.20402913]
[1753499140880,0.85042739,117640.0,117630.0,0.20402913]
[1753499141315,0.85042732,117640.0,117630.0,0.20402913]
[1753499141964,0.85042732,117640.0,117630.0,0.21253007]
[1753499142182,0.85042732,117640.0,117630.0,0.20402913]
[1753499142183,0.85042739,117640.0,117630.0,0.20402913]
[1753499142413,0.70330681,117640.0,117630.0,0.21253007]
[1753499142658,0.84188695,117640.0,117630.0,0.21252971]
[1753499143772,0.54940993,117640.0,117630.0,0.21252963]
[1753499143978,0.84188695,117640.0,117630.0,0.21252963]
[1753499144198,0.84188695,117640.0,117630.0,0.20402884]
[1753499144432,0.84188695,117640.0,117630.0,0.21252971]
[1753499144651,0.84188695,117640.0,117630.0,0.20402884]
[1753499145077,0.55791007,117640.0,117630.0,0.21252971]
[1753499145278,0.55791007,117640.0,117630.0,0.21252934]
[1753499145484,0.85038717,117640.0,117630.0,0.19552768]
[1753499145713,0.85038717,117640.0,117630.0,0.18702674]
[1753499145919,1.02039823,117640.0,117630.0,0.17002465]
[1753499146135,1.02039823,117640.0,117630.0,0.17852588]
[1753499147045,1.01189809,117640.0,117630.0,0.17002465]
[1753499147914,0.72792121,117640.0,117630.0,0.17002465]
[1753499148128,1.01189809,117640.0,117630.0,0.17002465]
[1753499148780,0.40333058,117640.0,117630.0,0.18702689]
[1753499148998,0.81738746,117640.0,117630.0,0.18702696]
[1753499149631,0.83248746,117640.0,117630.0,0.18702696]
[1753499150080,0.83248746,117640.0,117630.0,0.19552797]
[1753499150536,0.39483,117640.0,117630.0,0.18702696]
[1753499150754,0.51687014,117640.0,117630.0,0.19552783]
[1753499150970,0.51687014,117640.0,117630.0,0.1955279]
[1753499151187,0.54087043,117640.0,117630.0,0.1955279]
[1753499151848,0.82484731,117640.0,117630.0,0.18702696]
[1753499152304,0.82484731,117640.0,117630.0,0.19552797]
[1753499152758,0.53237014,117640.0,117630.0,0.21252978]
[1753499152979,0.81634702,117640.0,117630.0,0.21252978]
[1753499153198,0.53237014,117640.0,117630.0,0.21252978]
[1753499153434,0.81634702,117640.0,117630.0,0.21252978]
[1753499153828,0.81634702,117640.0,117630.0,0.21252934]
[1753499154618,0.81634702,117640.0,117630.0,0.19552768]
[1753499155049,0.82484731,117640.0,117630.0,0.19552768]
[1753499155272,0.82484731,117640.0,117630.0,0.18702674]
[1753499155881,0.82484731,117640.0,117630.0,0.19552768]
[1753499156296,0.82484731,117640.0,117630.0,0.18702674]
[1753499156747,0.81634702,117640.0,117630.0,0.18702674]